bitfinex/quotes_BTCUSD_20250714
["timestamp","ask_amount","ask_price","bid_price","bid_amount"]
[1752472393307,0.27842524,121850.0,121840.0,0.00115227]
[1752472393520,0.28663198,121850.0,121840.0,0.00115227]
[1752472393738,0.2702187,121850.0,121840.0,0.00115227]
[1752472393965,0.62041578,121850.0,121840.0,0.00115227]
[1752472394183,0.28041578,121850.0,121840.0,0.00115227]
[1752472394398,0.62877102,121850.0,121840.0,0.00115227]
[1752472394620,0.62877102,121850.0,121840.0,0.13347227]
[1752472394837,0.62777102,121850.0,121840.0,0.13247227]
[1752472395067,0.62777102,121850.0,121840.0,0.00015227]
[1752472395342,0.62777102,121850.0,121840.0,0.00115227]
[1752472395343,0.62877102,121850.0,121840.0,0.00115227]
[1752472395564,0.7404174,121850.0,121840.0,0.08542993]
[1752472395779,0.290598,121880.0,121870.0,0.04634085]
[1752472395780,0.240598,121880.0,121870.0,0.04634085]
[1752472396000,0.240598,121880.0,121870.0,0.42707694]
[1752472396220,0.240598,121880.0,121870.0,0.72281694]
[1752472396440,0.240598,121880.0,121870.0,0.33065]
[1752472396698,0.24880225,121880.0,121870.0,0.33065]
[1752472396917,0.240598,121880.0,121870.0,0.70827609]
[1752472397144,0.240598,121880.0,121870.0,0.72281694]
[1752472397789,0.243598,121880.0,121870.0,0.34519085]
[1752472398240,0.243598,121880.0,121870.0,0.72281694]
[1752472398459,0.240598,121880.0,121870.0,0.72281694]
[1752472398897,0.241598,121880.0,121870.0,0.72281694]
[1752472400258,0.243598,121880.0,121870.0,0.72281694]
[1752472401330,0.243598,121880.0,121870.0,0.34519085]
[1752472401551,0.243598,121880.0,121870.0,0.71648155]
[1752472401770,0.243598,121880.0,121870.0,1.88213595]
[1752472401771,0.06457298,121880.0,121870.0,1.88213595]
[1752472401998,0.0004,121960.0,121920.0,0.21734402]
[1752472402222,0.0004,121960.0,121950.0,0.37762609]
[1752472402440,0.0004,121960.0,121950.0,0.64370609]
[1752472402912,0.0004,121960.0,121950.0,0.64681609]
[1752472403332,0.00090907,121960.0,121950.0,0.64681609]
[1752472403777,0.00190907,121960.0,121950.0,0.64681609]
[1752472404002,0.00190907,121960.0,121950.0,1.19664383]
[1752472404240,0.00190907,121960.0,121950.0,1.2287439]
[1752472404456,0.00190907,121960.0,121950.0,1.33691469]
[1752472404670,0.00190907,121960.0,121950.0,0.79528696]
[1752472404889,0.00190907,121960.0,121950.0,0.78708695]
[1752472405315,0.00190907,121960.0,121950.0,0.79528696]
[1752472405526,0.00090907,121960.0,121950.0,0.77888687]
[1752472405953,0.00090907,121960.0,121950.0,0.78808688]
[1752472406623,0.00090907,121960.0,121950.0,0.96848821]
[1752472406889,0.00090907,121960.0,121950.0,1.36251365]
[1752472407110,0.00090907,121960.0,121950.0,1.39451365]
[1752472407542,0.00090907,121960.0,121950.0,0.67848687]
[1752472407757,0.00090907,121960.0,121950.0,0.82688833]
[1752472407975,0.00090907,121960.0,121950.0,1.25291384]
[1752472408216,0.00090907,121960.0,121950.0,1.30291384]
[1752472408658,0.0004,122000.0,121990.0,0.37762609]
[1752472408870,0.00055271,122000.0,121990.0,0.64278609]
[1752472409311,0.00055271,122000.0,121990.0,0.64589609]
[1752472409953,0.00155271,122000.0,121990.0,0.64589609]
[1752472411290,0.00155271,122000.0,121990.0,0.68449348]
[1752472411504,0.00155271,122000.0,121990.0,0.67629609]
[1752472411718,0.00155271,122000.0,121990.0,0.64589609]
[1752472411945,5.22e-05,122000.0,121990.0,0.64589609]
[1752472412170,0.0004,122010.0,121990.0,0.64589609]
[1752472412387,0.0004,122010.0,122000.0,0.37762609]
[1752472413458,0.0004,122010.0,121990.0,0.64689609]
[1752472413669,0.0024,122010.0,121990.0,0.64689609]
[1752472414093,0.1317655,122010.0,121990.0,0.26616]
[1752472414302,0.12156993,122010.0,121990.0,0.26616]
[1752472414785,0.001,122010.0,122000.0,1.11315366]
[1752472414996,0.0004,122040.0,122010.0,0.07894085]
[1752472415207,0.0004,122040.0,122030.0,0.37762609]
[1752472415421,0.0005526,122040.0,122030.0,0.37762609]
[1752472415628,0.0005526,122040.0,122020.0,0.70950609]
[1752472415868,0.0005526,122040.0,122020.0,0.57638126]
[1752472416091,0.0005526,122040.0,122020.0,0.19875517]
[1752472416307,0.0005526,122040.0,122020.0,0.19652]
[1752472416308,0.08252833,122030.0,122020.0,0.19652]
[1752472416527,0.1843472,122030.0,122020.0,0.19652]
[1752472416738,0.19254163,122030.0,122020.0,0.19652]
[1752472416949,0.18434706,122030.0,122020.0,0.19652]
[1752472417164,0.18434746,122030.0,122020.0,0.32888]
[1752472417390,0.16795853,122030.0,122020.0,0.32888]
[1752472417597,0.15156993,122030.0,122020.0,0.32888]
[1752472417799,0.001,122030.0,122020.0,0.72319804]
[1752472418013,0.001,122030.0,122020.0,0.85843804]
[1752472418238,0.001,122030.0,122020.0,0.19652]
[1752472418463,0.03694,122030.0,122020.0,0.19652]
[1752472418676,0.03694,122030.0,122020.0,0.32884]
[1752472418883,0.03694,122030.0,122020.0,0.3288]
[1752472419094,0.03994,122030.0,122020.0,0.3288]
[1752472419311,0.0368,122030.0,122020.0,0.19652]
[1752472419527,0.0358,122030.0,122020.0,0.32876]
[1752472420203,0.003,122030.0,122020.0,0.32876]
[1752472420410,0.003,122030.0,122020.0,0.32872]
[1752472420626,0.04248603,122040.0,122020.0,0.32872]
[1752472420836,0.002,122030.0,122020.0,0.32872]
[1752472421253,0.002,122030.0,122020.0,0.79145617]
[1752472421695,0.0005526,122040.0,122020.0,0.92365617]
[1752472421904,0.0015526,122040.0,122020.0,0.92365617]
[1752472422409,0.0005526,122040.0,122030.0,0.52872671]
[1752472422625,0.0005526,122040.0,122030.0,0.52963804]
[1752472422841,0.0005526,122040.0,122030.0,0.83392679]
[1752472423050,0.0005526,122040.0,122030.0,0.84423995]
[1752472423267,0.0005526,122040.0,122030.0,0.86035129]
[1752472423509,0.0005526,122040.0,122030.0,0.61506797]
[1752472423946,0.0005526,122040.0,122030.0,0.74726797]
[1752472424156,0.0005526,122040.0,122030.0,0.75846267]
[1752472424366,0.0005526,122040.0,122030.0,0.75026797]
[1752472424579,0.0005526,122040.0,122030.0,0.6232626]
[1752472424794,0.0005526,122040.0,122030.0,0.64706797]
[1752472425015,0.0005526,122040.0,122030.0,0.77926797]
[1752472425442,0.0005526,122040.0,122030.0,0.78546267]
[1752472425658,0.0005526,122040.0,122030.0,0.83454573]
[1752472425874,0.0005526,122040.0,122030.0,0.96251136]
[1752472426098,0.0005526,122040.0,122030.0,0.96670585]
[1752472426311,0.0005526,122040.0,122030.0,0.96670592]
[1752472426524,0.0005526,122040.0,122030.0,0.96051142]
[1752472426709,0.0005526,122040.0,122030.0,0.12138993]
[1752472426945,0.0005526,122040.0,122030.0,0.7884226]
[1752472427157,0.0005526,122040.0,122030.0,0.67906797]
[1752472427371,0.0005526,122040.0,122030.0,0.98331672]
[1752472427595,0.0005526,122040.0,122030.0,0.86754579]
[1752472427808,0.0005526,122040.0,122030.0,1.00789989]
[1752472428009,0.0005526,122040.0,122030.0,0.86754579]
[1752472428216,0.0005526,122040.0,122030.0,1.01609445]
[1752472428679,0.0005526,122040.0,122030.0,0.86754579]
[1752472428883,0.0005526,122040.0,122030.0,1.01609445]
[1752472429573,0.0005526,122040.0,122030.0,1.2384753]
[1752472429840,0.0005526,122040.0,122030.0,1.4206353]
[1752472430054,0.0004,122050.0,122040.0,0.72968086]
[1752472430279,0.0004,122050.0,122040.0,0.87781079]
[1752472430531,0.0004,122050.0,122040.0,1.03783773]
[1752472430766,0.0004,122050.0,122040.0,0.90567773]
[1752472430996,0.0004,122050.0,122040.0,1.03783773]
[1752472431245,0.0004,122050.0,122040.0,0.97097586]
[1752472431496,0.3404,122090.0,122080.0,0.52667804]
[1752472431726,0.34090888,122090.0,122080.0,0.65883804]
[1752472431958,0.34090888,122090.0,122080.0,0.13216]
[1752472432183,0.34090888,122090.0,122080.0,0.65883804]
[1752472432649,0.00090888,122090.0,122080.0,0.91924624]
[1752472432883,0.00190888,122090.0,122080.0,0.74722797]
[1752472433540,0.00090888,122090.0,122080.0,0.74722797]
[1752472433774,0.00090888,122090.0,122080.0,0.65883804]
[1752472433984,0.00090888,122090.0,122070.0,0.52667804]
[1752472434197,0.00090888,122090.0,122080.0,0.13216]
[1752472434403,0.00090888,122090.0,122070.0,0.61210797]
[1752472434619,0.03474888,122090.0,122080.0,0.13216]
[1752472435128,0.03574888,122090.0,122080.0,0.13216]
[1752472435865,0.06694888,122090.0,122080.0,0.13212]
[1752472436351,0.06694888,122090.0,122070.0,0.52667804]
[1752472436573,0.06694888,122090.0,122080.0,0.13212]
[1752472437182,0.06594888,122090.0,122080.0,0.13212]
[1752472437595,0.06694888,122090.0,122080.0,0.13212]
[1752472437926,0.00090888,122090.0,122080.0,0.52667804]
[1752472438132,0.00090888,122090.0,122080.0,0.13212]
[1752472438333,0.03290888,122090.0,122080.0,0.13212]
[1752472438540,0.03290888,122090.0,122070.0,0.52667804]
[1752472438746,0.03490888,122090.0,122070.0,0.61210797]
[1752472438945,0.03490888,122090.0,122080.0,0.50904234]
[1752472438946,0.03804888,122090.0,122080.0,0.50904234]
[1752472439773,0.03804888,122090.0,122080.0,0.13212]
[1752472440163,0.03604888,122090.0,122080.0,0.50904234]
[1752472440373,0.03604888,122090.0,122080.0,0.13212]
[1752472440611,0.03604888,122090.0,122080.0,0.50904234]
[1752472440841,0.03604888,122090.0,122080.0,0.50900234]
[1752472441051,0.03604888,122090.0,122080.0,0.37692234]
[1752472441264,0.03604888,122090.0,122080.0,0.50900234]
[1752472441505,0.03586888,122090.0,122080.0,0.37898234]
[1752472441732,0.03586888,122090.0,122080.0,0.13414]
[1752472441957,0.03586888,122090.0,122080.0,0.13208]
[1752472441958,0.03900888,122090.0,122080.0,0.13208]
[1752472442621,0.03900888,122090.0,122080.0,0.37692234]
[1752472442835,0.00190888,122090.0,122080.0,0.51106234]
[1752472443097,0.00190888,122090.0,122080.0,0.51413234]
[1752472443308,0.04690888,122100.0,122080.0,0.57943047]
[1752472443517,0.04706139,122100.0,122090.0,0.37897]
[1752472443690,0.04706139,122100.0,122090.0,0.37898234]
[1752472444586,0.04906139,122100.0,122090.0,0.37898234]
[1752472445007,0.04706139,122100.0,122090.0,0.37898234]
[1752472445222,0.05106139,122100.0,122090.0,0.37898234]
[1752472445462,0.05106139,122100.0,122090.0,0.51413234]
[1752472445911,0.05006139,122100.0,122090.0,0.38205234]
[1752472446127,0.05006139,122100.0,122090.0,0.64621234]
[1752472446345,0.04542472,122100.0,122090.0,0.65440295]
[1752472446568,0.04542472,122100.0,122090.0,0.911837]
[1752472446801,0.04542472,122100.0,122090.0,0.73164227]
[1752472446991,0.04542472,122100.0,122090.0,0.64314234]
[1752472447226,0.04242472,122100.0,122090.0,0.64314234]
[1752472447652,0.04342472,122100.0,122090.0,0.64314234]
[1752472448110,0.04242472,122100.0,122090.0,0.64621234]
[1752472448325,0.04242472,122100.0,122090.0,0.64314234]
[1752472449169,0.04438472,122100.0,122090.0,0.64314234]
[1752472449355,0.04438472,122100.0,122090.0,0.51206234]
[1752472449759,0.04242472,122100.0,122090.0,0.51206234]
[1752472450099,0.04242472,122100.0,122090.0,0.37998234]
[1752472450303,0.04242472,122100.0,122090.0,0.51206234]
[1752472450714,0.04242472,122100.0,122090.0,0.51513234]
[1752472451680,0.04242472,122100.0,122090.0,0.60875294]
[1752472451882,0.04242472,122100.0,122090.0,0.60056227]
[1752472452692,0.04242472,122100.0,122090.0,0.76437585]
[1752472452916,0.04242472,122100.0,122090.0,0.78894707]
[1752472453119,0.04242472,122100.0,122090.0,0.85044707]
[1752472453325,0.04242472,122100.0,122090.0,0.84225687]
[1752472453462,0.04242472,122100.0,122090.0,0.85863734]
[1752472454716,0.34,122130.0,122090.0,0.82517734]
[1752472454946,0.79067886,122180.0,122090.0,0.82517734]
[1752472454947,0.50231304,122200.0,122190.0,0.05]
[1752472455155,0.01423179,122230.0,122210.0,0.57263573]
[1752472455350,5.24147246,122240.0,122230.0,0.25270987]
[1752472455351,5.24910381,122240.0,122230.0,0.25270987]
[1752472455560,5.21229925,122240.0,122230.0,1.00655455]
[1752472455790,4.29023027,122240.0,122230.0,1.37875508]
[1752472456003,4.09442026,122240.0,122230.0,1.49211204]
[1752472456219,3.83990287,122240.0,122230.0,0.7531398]
[1752472456429,3.83172408,122240.0,122230.0,1.48198448]
[1752472456644,3.83172408,122240.0,122230.0,1.44853808]
[1752472456854,3.49578988,122240.0,122230.0,1.75694042]
[1752472457063,3.49578988,122240.0,122230.0,1.5361647]
[1752472457272,3.48761109,122240.0,122230.0,2.1164235]
[1752472457481,3.45898532,122240.0,122230.0,2.1164235]
[1752472457697,3.45080653,122240.0,122230.0,1.7982235]
[1752472457920,3.45080653,122240.0,122230.0,1.69729388]
[1752472458158,3.41400197,122240.0,122230.0,1.12097574]
[1752472458372,3.40582318,122240.0,122230.0,0.96209574]
[1752472458580,3.40582318,122240.0,122230.0,1.38042385]
[1752472458789,3.39764439,122240.0,122230.0,0.50938587]
[1752472458999,3.36901862,122240.0,122230.0,0.16938587]
[1752472459226,3.36083983,122240.0,122230.0,0.32802587]
[1752472459479,3.36075893,122240.0,122230.0,0.08542993]
[1752472459675,3.39225893,122240.0,122230.0,0.58814993]
[1752472460079,3.42515893,122240.0,122230.0,0.43042993]
[1752472460279,3.27066163,122240.0,122230.0,0.43042993]
[1752472460483,3.27066163,122240.0,122230.0,0.53202477]
[1752472460745,3.27066163,122240.0,122230.0,0.69058477]
[1752472460956,3.27066163,122240.0,122230.0,0.53002477]
[1752472461165,3.27066163,122240.0,122230.0,0.68862477]
[1752472461369,3.27480163,122240.0,122230.0,0.68354477]
[1752472461790,3.27480163,122240.0,122230.0,0.58394993]
[1752472462023,3.27166163,122240.0,122230.0,0.42542993]
[1752472462278,3.27166163,122240.0,122230.0,0.58358993]
[1752472462481,3.27166163,122240.0,122230.0,0.42542993]
[1752472462684,3.27166163,122240.0,122220.0,0.09459484]
[1752472462685,0.0613,122230.0,122220.0,0.09459484]
[1752472462870,0.0613,122220.0,122200.0,0.18207804]
[1752472463089,0.0573,122220.0,122210.0,0.31604]
[1752472463619,0.0563,122220.0,122210.0,0.31604]
[1752472463826,0.0563,122220.0,122210.0,0.40146993]
[1752472464030,3.24190163,122240.0,122210.0,1.11373869]
[1752472464261,3.24190163,122240.0,122220.0,0.42747542]
[1752472464262,3.23876163,122240.0,122220.0,0.42747542]
[1752472464470,3.23876163,122240.0,122220.0,0.42542993]
[1752472464689,0.0314,122230.0,122220.0,0.42542993]
[1752472464906,0.03454,122230.0,122220.0,0.49756]
[1752472465114,0.03454,122230.0,122220.0,0.49748]
[1752472465330,0.03454,122230.0,122220.0,0.3536]
[1752472465774,0.0314,122230.0,122220.0,0.62154993]
[1752472465994,0.0314,122230.0,122220.0,0.77886993]
[1752472466425,3.06118337,122240.0,122220.0,0.63850313]
[1752472466651,3.09592337,122240.0,122230.0,0.14117446]
[1752472466863,3.09592337,122240.0,122230.0,0.31528766]
[1752472467095,3.09592337,122240.0,122230.0,0.31512766]
[1752472467312,3.09592337,122240.0,122230.0,0.29817446]
[1752472467535,3.09692337,122240.0,122230.0,0.157]
[1752472467952,3.09592337,122240.0,122230.0,0.157]
[1752472468166,2.90990683,122240.0,122230.0,0.15672]
[1752472468436,2.91290683,122240.0,122230.0,0.15668]
[1752472468655,2.91290683,122240.0,122230.0,0.1566]
[1752472469323,2.91290683,122240.0,122220.0,0.79337069]
[1752472469535,2.90990683,122240.0,122230.0,0.1564]
[1752472469744,2.93706683,122240.0,122230.0,0.1564]
[1752472469956,2.93706683,122240.0,122230.0,1.28781268]
[1752472469957,2.90876683,122240.0,122230.0,1.28781268]
[1752472470162,2.90676683,122240.0,122230.0,1.29394825]
[1752472470381,2.90676683,122240.0,122230.0,0.61359915]
[1752472470580,2.90676683,122240.0,122230.0,0.61359922]
[1752472470789,2.90676683,122240.0,122230.0,0.77790004]
[1752472470996,2.90676683,122240.0,122230.0,0.42742993]
[1752472471201,2.90676683,122240.0,122230.0,0.58342993]
[1752472471421,2.94116683,122240.0,122230.0,0.42742993]
[1752472471632,2.94116683,122240.0,122230.0,0.42842993]
[1752472471833,2.94116683,122240.0,122230.0,0.58434993]
[1752472472043,2.94116683,122240.0,122230.0,0.42842993]
[1752472472255,2.94116683,122240.0,122230.0,0.42742993]
[1752472472460,2.94116683,122240.0,122230.0,0.58322993]
[1752472472461,2.94216683,122240.0,122230.0,0.58322993]
[1752472472672,2.94216683,122240.0,122230.0,0.58122993]
[1752472473538,2.94316683,122240.0,122230.0,0.58122993]
[1752472473719,2.94316683,122240.0,122230.0,0.42542993]
[1752472473923,2.94316683,122240.0,122230.0,0.58090993]
[1752472474146,2.94316683,122240.0,122230.0,0.42542993]
[1752472474147,2.94216683,122240.0,122230.0,0.42542993]
[1752472474354,2.94216683,122240.0,122230.0,0.58086993]
[1752472474562,2.94316683,122240.0,122230.0,0.42542993]
[1752472474773,2.94316683,122240.0,122230.0,0.58090993]
[1752472475402,2.94316683,122240.0,122230.0,0.58078993]
[1752472475633,2.94116683,122240.0,122230.0,0.25415855]
[1752472475887,2.94116683,122240.0,122230.0,0.09879855]
[1752472476070,2.94416683,122240.0,122230.0,0.09879855]
[1752472476285,2.94416683,122240.0,122230.0,0.25387855]
[1752472476286,3.49963579,122240.0,122230.0,0.25387855]
[1752472476495,3.39032141,122240.0,122230.0,0.25387855]
[1752472476706,2.86625245,122240.0,122220.0,0.29491855]
[1752472476948,0.0655,122230.0,122220.0,0.29491855]
[1752472477171,0.0655,122230.0,122220.0,0.44995855]
[1752472477389,0.0685,122230.0,122220.0,0.44995855]
[1752472477592,0.0685,122230.0,122220.0,0.44987855]
[1752472478217,0.0685,122230.0,122220.0,0.44971855]
[1752472478426,0.0685,122230.0,122220.0,0.29491855]
[1752472478842,0.0685,122230.0,122220.0,0.19612]
[1752472479047,0.0685,122230.0,122220.0,0.35068]
[1752472479464,0.0081671,122230.0,122220.0,0.44980524]
[1752472479882,0.0081671,122230.0,122220.0,0.35068]
[1752472480097,0.0081671,122230.0,122220.0,0.3504]
[1752472480511,0.0081671,122230.0,122220.0,0.19612]
[1752472480714,0.0081671,122230.0,122220.0,0.3504]
[1752472480933,0.0081671,122230.0,122220.0,0.19612]
[1752472481155,0.384307,122230.0,122220.0,0.35012]
[1752472481558,0.0081671,122230.0,122220.0,0.35012]
[1752472482180,0.0081671,122230.0,122220.0,0.69012]
[1752472482388,0.0081671,122230.0,122220.0,0.53612]
[1752472482598,0.0081671,122230.0,122220.0,0.68984]
[1752472483621,0.416007,122230.0,122220.0,0.68984]
[1752472483823,0.0398671,122230.0,122220.0,0.68984]
[1752472484025,0.416007,122230.0,122220.0,0.68984]
[1752472484452,0.0398671,122230.0,122220.0,0.68984]
[1752472485666,3.17259235,122240.0,122220.0,0.68984]
[1752472485951,3.25802228,122240.0,122230.0,0.14326683]
[1752472486361,3.79253647,122240.0,122230.0,0.00494499]
[1752472486561,0.01454085,122220.0,122210.0,0.18756606]
[1752472486852,0.3761399,122220.0,122210.0,0.34036606]
[1752472487227,0.4006719,122220.0,122210.0,0.34036606]
[1752472487375,0.24620095,122220.0,122210.0,0.18756606]
[1752472487592,0.24800095,122220.0,122210.0,0.1526]
[1752472487803,0.09322993,122220.0,122190.0,0.00204599]
[1752472488011,0.08542993,122200.0,122170.0,0.22962497]
[1752472488207,0.08722993,122200.0,122170.0,0.00311]
[1752472488407,0.08242993,122200.0,122170.0,0.00515632]
[1752472489122,0.08242993,122200.0,122180.0,0.15236]
[1752472489337,0.08258249,122200.0,122190.0,0.15224]
[1752472489577,0.0018,122190.0,122160.0,0.2615277]
[1752472489768,0.0018,122190.0,122170.0,0.15216]
[1752472491046,0.0018,122190.0,122160.0,0.2646377]
[1752472491282,0.0018,122190.0,122170.0,0.1518]
[1752472491699,0.08258249,122200.0,122170.0,0.00311]
[1752472491909,0.08438249,122200.0,122170.0,0.00311]
[1752472492123,0.08438249,122200.0,122180.0,0.15172]
[1752472493620,0.08438249,122200.0,122180.0,0.15372]
[1752472494319,0.00015256,122200.0,122180.0,0.15683]
[1752472495674,0.00015256,122200.0,122190.0,0.00515599]
[1752472496314,0.00015256,122200.0,122190.0,0.00311]
[1752472496989,0.00115256,122200.0,122190.0,0.00311]
[1752472498322,0.00115256,122200.0,122190.0,0.7830499]
[1752472498546,0.00115256,122200.0,122190.0,0.96309701]
[1752472498922,0.00115256,122200.0,122190.0,1.41286811]
[1752472499129,0.00215256,122200.0,122190.0,1.12215814]
[1752472499676,0.00215256,122200.0,122190.0,1.49829804]
[1752472499677,0.00115256,122200.0,122190.0,1.49829804]
[1752472499915,0.00015256,122200.0,122190.0,1.20695044]
[1752472500203,0.00015256,122200.0,122190.0,1.20883044]
[1752472500420,0.00015256,122200.0,122190.0,1.20683044]
[1752472500657,0.00015256,122200.0,122190.0,0.49233993]
[1752472500885,0.00015256,122200.0,122190.0,0.15315]
[1752472501106,0.00015256,122200.0,122190.0,0.15331]
[1752472501331,0.00015256,122200.0,122190.0,0.15727]
[1752472501547,0.00015256,122200.0,122190.0,0.00711]
[1752472501997,0.00015256,122200.0,122190.0,0.15719]
[1752472502268,0.00015256,122200.0,122190.0,0.15919]
[1752472502513,0.00015256,122200.0,122190.0,0.00911]
[1752472502785,0.00015256,122200.0,122190.0,0.15719]
[1752472503457,0.00015256,122200.0,122190.0,0.004]
[1752472503458,0.00015256,122200.0,122190.0,0.36384]
[1752472504545,0.46331719,122200.0,122190.0,0.004]
[1752472504778,0.49341719,122200.0,122190.0,0.004]
[1752472505009,0.49341719,122200.0,122160.0,0.19928]
[1752472505255,0.3761399,122180.0,122160.0,0.19608]
[1752472505477,0.08542993,122170.0,122160.0,0.19608]
[1752472505717,0.08542993,122170.0,122160.0,0.34548]
[1752472506665,0.08542993,122170.0,122160.0,0.34544]
[1752472506900,0.08642993,122170.0,122160.0,0.34544]
[1752472507122,0.08842993,122170.0,122160.0,0.34544]
[1752472507583,0.08842993,122170.0,122160.0,0.34508]
[1752472508029,0.08742993,122170.0,122160.0,0.34508]
[1752472508258,0.09042993,122170.0,122160.0,0.34508]
[1752472510550,0.09042993,122170.0,122160.0,0.19608]
[1752472511003,0.09042993,122170.0,122160.0,0.34456]
[1752472511478,0.08842993,122170.0,122160.0,0.34456]
[1752472511744,0.09022993,122170.0,122160.0,0.34456]
[1752472511967,0.08722993,122170.0,122160.0,0.34456]
[1752472512177,0.08942993,122170.0,122160.0,0.34456]
[1752472512632,0.08942993,122170.0,122160.0,0.3444]
[1752472514679,0.08542993,122170.0,122160.0,0.3444]
[1752472516041,0.08842993,122170.0,122160.0,0.3444]
[1752472516254,0.09042993,122170.0,122160.0,0.3444]
[1752472516470,0.09042993,122170.0,122160.0,0.19608]
[1752472516692,0.09239993,122170.0,122160.0,0.34388]
[1752472516912,0.09239993,122170.0,122160.0,0.34384]
[1752472517355,0.09239993,122170.0,122160.0,0.19608]
[1752472517580,0.09239993,122170.0,122160.0,0.34372]
[1752472518504,0.005,122170.0,122160.0,0.60098]
[1752472518742,0.005,122170.0,122160.0,0.9771199]
[1752472518958,0.005,122170.0,122160.0,0.71682]
[1752472519408,0.003,122170.0,122160.0,0.71682]
[1752472519651,0.004,122170.0,122160.0,0.71682]
[1752472519870,0.001,122170.0,122160.0,0.71682]
[1752472520103,0.004,122170.0,122160.0,0.68672]
[1752472520586,0.004,122170.0,122160.0,0.89672]
[1752472521431,0.004,122170.0,122160.0,0.89879]
[1752472523370,0.004,122170.0,122160.0,1.13409569]
[1752472523581,0.004,122170.0,122160.0,1.51842144]
[1752472523795,0.004,122170.0,122160.0,1.8304926]
[1752472524471,0.004,122170.0,122160.0,1.91592253]
[1752472525331,0.001,122170.0,122160.0,1.91592253]
[1752472525551,0.001,122170.0,122160.0,1.95129559]
[1752472525777,0.0018,122210.0,122170.0,0.34]
[1752472526037,0.08542993,122200.0,122180.0,0.29248]
[1752472526248,0.08542993,122200.0,122180.0,0.29568]
[1752472527157,0.08542993,122200.0,122190.0,0.00527]
[1752472527378,0.4065399,122230.0,122190.0,0.3814099]
[1752472527379,0.0322,122230.0,122190.0,0.3814099]
[1752472527586,0.0322,122230.0,122200.0,0.2918]
[1752472527587,0.08542993,122220.0,122200.0,0.2918]
[1752472527790,0.08542993,122220.0,122200.0,0.295]
[1752472528675,2.86294366,122240.0,122200.0,0.295]
[1752472528890,0.08542993,122230.0,122200.0,0.295]
[1752472529101,0.003,122220.0,122200.0,0.295]
[1752472529754,0.005,122220.0,122200.0,0.295]
[1752472529964,0.00198,122210.0,122200.0,0.2918]
[1752472530170,0.00198,122210.0,122200.0,0.29108]
[1752472530381,0.00198,122210.0,122200.0,0.29325]
[1752472530582,0.00198,122210.0,122200.0,0.29645]
[1752472530800,0.08842993,122220.0,122200.0,0.29645]
[1752472531042,0.003,122220.0,122210.0,0.00313]
[1752472531260,0.003,122220.0,122210.0,0.0053]
[1752472531723,2.79594366,122240.0,122210.0,0.0053]
[1752472531933,2.88137359,122240.0,122220.0,0.29052]
[1752472532140,0.00198,122230.0,122220.0,0.29052]
[1752472533220,2.88488165,122240.0,122220.0,0.6719599]
[1752472533466,2.79645172,122240.0,122230.0,0.19925]
[1752472533702,2.79645172,122240.0,122230.0,0.71121883]
[1752472533912,2.79645172,122240.0,122230.0,0.71121889]
[1752472534117,2.79645172,122240.0,122230.0,0.3268977]
[1752472534560,2.79645172,122240.0,122230.0,0.71121889]
[1752472534810,2.79945172,122240.0,122230.0,0.3268977]
[1752472535026,2.79645172,122240.0,122230.0,0.52043]
[1752472535247,2.88488165,122240.0,122230.0,0.4856]
[1752472536099,2.88788165,122240.0,122230.0,0.4856]
[1752472536520,2.88488165,122240.0,122230.0,0.4856]
[1752472536943,2.80045172,122240.0,122230.0,0.48873]
[1752472537158,2.80045172,122240.0,122230.0,0.8648699]
[1752472537411,2.80045172,122240.0,122230.0,1.10157708]
[1752472537630,2.80045172,122240.0,122230.0,1.45793892]
[1752472537842,2.78902968,122240.0,122230.0,1.5579097]
[1752472538307,2.78085764,122240.0,122230.0,1.6079097]
[1752472538790,2.78085764,122240.0,122230.0,1.9198697]
[1752472538791,2.7081856,122240.0,122230.0,1.9198697]
[1752472539010,2.67958344,122240.0,122230.0,2.2960096]
[1752472539232,2.63921483,122240.0,122230.0,2.4812096]
[1752472539449,2.59945609,122240.0,122230.0,2.50731621]
[1752472539668,2.59945609,122240.0,122230.0,2.4812096]
[1752472539868,2.59128748,122240.0,122230.0,2.4812096]
[1752472540075,2.56269735,122240.0,122230.0,2.4812096]
[1752472540276,2.55452874,122240.0,122230.0,2.4812096]
[1752472540503,2.55452874,122240.0,122230.0,2.4892096]
[1752472540702,2.54636013,122240.0,122230.0,2.4892096]
[1752472540926,2.51777,122240.0,122230.0,2.4892096]
[1752472541237,2.50960139,122240.0,122230.0,2.4892096]
[1752472541458,2.47284265,122240.0,122230.0,2.4892096]
[1752472541786,1.90938611,122240.0,122230.0,2.4892096]
[1752472542007,1.5954727,122240.0,122230.0,2.4243096]
[1752472542230,1.46666969,122240.0,122230.0,2.4243096]
[1752472542492,1.46666969,122240.0,122230.0,2.3223496]
[1752472542748,1.42991095,122240.0,122230.0,2.3223496]
[1752472542940,1.42174234,122240.0,122230.0,2.35036038]
[1752472543375,1.3849836,122240.0,122230.0,2.15424038]
[1752472543806,0.99274999,122240.0,122230.0,2.15424038]
[1752472544006,0.80326506,122240.0,122230.0,2.15424038]
[1752472544209,0.7950986,122240.0,122230.0,2.15424038]
[1752472544413,0.7950986,122240.0,122230.0,1.6974097]
[1752472544586,0.75834953,122240.0,122230.0,1.7474097]
[1752472544925,0.75018307,122240.0,122230.0,1.7474097]
[1752472545129,0.75018307,122240.0,122230.0,2.1235496]
[1752472545331,0.713434,122240.0,122230.0,2.4215096]
[1752472545535,0.713434,122240.0,122230.0,3.2087096]
[1752472545737,0.713434,122240.0,122230.0,3.2332186]
[1752472545887,0.67668493,122240.0,122230.0,3.1308586]
[1752472546093,0.67668493,122240.0,122230.0,3.1063496]
[1752472546316,0.66851847,122240.0,122230.0,3.1308596]
[1752472546529,0.66035201,122240.0,122230.0,3.1063496]
[1752472546937,0.65218555,122240.0,122230.0,2.6148496]
[1752472547145,0.65218555,122240.0,122230.0,2.3191496]
[1752472547383,0.61543648,122240.0,122230.0,2.6148496]
[1752472547583,0.61543648,122240.0,122230.0,1.54467799]
[1752472547787,0.60727002,122240.0,122230.0,1.5164397]
[1752472548159,0.60727002,122240.0,122230.0,1.8925796]
[1752472548160,0.59910356,122240.0,122230.0,1.8925796]
[1752472548361,0.59910356,122240.0,122230.0,2.2325796]
[1752472548593,0.5909371,122240.0,122230.0,2.2325796]
[1752472549005,0.58277064,122240.0,122230.0,2.2325796]
[1752472549501,0.57460418,122240.0,122230.0,2.2325796]
[1752472549700,0.56643772,122240.0,122230.0,2.2325796]
[1752472550153,0.55827022,122240.0,122230.0,2.2325796]
[1752472550567,0.55010272,122240.0,122230.0,2.3185896]
[1752472550811,0.52151647,122240.0,122230.0,2.1225496]
[1752472551018,0.48433964,122240.0,122230.0,2.1225496]